bitfinex-derivatives/quotes_SOLF0:USTF0_20250808
["timestamp","ask_amount","ask_price","bid_price","bid_amount"]
[1754622154008,8.9858,174.91,174.9,3.27]
[1754622158208,5.7162,174.9,174.89,0.04034548]
[1754622158505,8.8362,174.9,174.89,0.04034548]
[1754622159509,8.8362,174.9,174.89,3.18034548]
[1754622160209,8.8362,174.9,174.89,0.04034548]
[1754622161711,5.7175,174.86,174.85,3.14]
[1754622162012,8.8375,174.86,174.85,3.14]
[1754622164310,8.8375,174.86,174.83,3.14]
[1754622164506,8.8375,174.86,174.83,8.8584]
[1754622164814,8.87693175,174.87,174.84,3.14]
[1754622165311,5.7175,174.86,174.84,3.14]
[1754622165712,3.15973175,174.87,174.84,3.14]
[1754622165916,8.87703175,174.87,174.84,8.8581]
[1754622166109,8.87703175,174.87,174.85,3.14]
[1754622166308,0.03973175,174.87,174.86,8.8575]
[1754622166509,6.34619388,174.94,174.86,3.14]
[1754622166711,6.34619388,174.94,174.88,3.14]
[1754622166910,3.12,174.94,174.9,3.14]
[1754622167415,5.7153,174.93,174.91,3.14]
[1754622167618,8.8353,174.93,174.91,3.14]
[1754622168111,5.715,174.94,174.92,3.14]
[1754622169320,3.12,174.95,174.91,3.14]
[1754622170116,3.12,174.95,174.9,0.03620518]
[1754622170316,3.12,174.95,174.92,3.14]
[1754622170512,8.8353,174.93,174.92,3.14]
[1754622171313,5.7153,174.93,174.92,3.14]
[1754622171716,8.8353,174.93,174.92,3.14]
[1754622172219,3.12,174.93,174.92,3.14]
[1754622172420,3.12,174.94,174.92,3.14]
[1754622172616,3.12,174.92,174.9,5.75230518]
[1754622173216,3.12,174.92,174.91,3.14]
[1754622173919,8.8355,174.92,174.91,3.14]
[1754622175116,5.7158,174.91,174.9,0.03620518]
[1754622175319,8.8358,174.91,174.9,3.17620518]
[1754622177922,8.8358,174.91,174.9,0.03620518]
[1754622179721,8.8358,174.91,174.9,3.17620518]
[1754622179923,8.8358,174.91,174.9,0.03620518]
[1754622182221,8.8358,174.91,174.9,3.33620518]
[1754622183123,5.7158,174.91,174.9,3.33620518]
[1754622183316,8.8658,174.91,174.9,3.33620518]
[1754622184323,8.8658,174.91,174.9,0.03620518]
[1754622184521,8.8658,174.91,174.9,3.33620518]
[1754622185620,8.8658,174.91,174.9,0.03620518]
[1754622187823,5.7168,174.88,174.87,3.3]
[1754622188021,8.94299388,174.88,174.87,3.3]
[1754622188217,3.22619388,174.88,174.85,3.3]
[1754622188419,5.7178,174.85,174.82,5.7186]
[1754622188720,5.7178,174.85,174.79,36.22619388]
[1754622188924,5.7176,174.86,174.8,3.3]
[1754622189120,3.15,174.9,174.85,3.3]
[1754622189327,3.22619388,174.96,174.85,3.3]
[1754622189328,3.22619388,174.91,174.85,3.3]
[1754622189531,0.03830807,174.89,174.85,3.3]
[1754622189832,0.03830807,174.89,174.86,5.7172]
[1754622190031,3.22619388,174.87,174.82,3.3]
[1754622190428,3.22619388,174.87,174.85,3.3]
[1754622190829,5.717,174.88,174.85,3.3]
[1754622191132,8.98100195,174.89,174.85,3.3]
[1754622191432,3.26450195,174.89,174.85,3.3]
[1754622191626,6.41450195,174.89,174.85,3.3]
[1754622191821,5.717,174.88,174.85,3.3]
[1754622192234,8.98110195,174.89,174.85,9.0175]
[1754622192530,8.98110195,174.89,174.86,3.3]
[1754622193532,5.7168,174.88,174.86,3.3]
[1754622195634,5.7168,174.88,174.87,3.3]
[1754622195834,8.8668,174.88,174.87,3.3]
[1754622196034,5.7168,174.88,174.87,3.3]
[1754622196634,8.8668,174.88,174.87,3.3]
[1754622196829,8.8674,174.87,174.86,3.3]
[1754622197333,3.15,174.88,174.81,3.3]
[1754622197532,3.22619388,174.88,174.81,3.3]
[1754622197734,6.37619388,174.88,174.81,3.3]
[1754622197933,3.15,174.87,174.84,3.3]
[1754622198234,3.15,174.85,174.78,3.3]
[1754622198435,3.15,174.82,174.78,3.3]
[1754622198638,3.15,174.82,174.79,3.3]
[1754622199230,3.18716885,174.82,174.79,3.3]
[1754622199529,3.15,174.81,174.79,3.3]
[1754622199731,8.8694,174.81,174.79,3.3]
[1754622200334,5.7194,174.81,174.79,3.3]
[1754622200734,5.7194,174.8,174.79,3.3]
[1754622201231,0.03716885,174.82,174.79,3.22619388]
[1754622201536,3.15,174.88,174.81,6.52619388]
[1754622201732,5.717,174.88,174.86,3.3]
[1754622201932,3.15,174.89,174.86,3.3]
[1754622202231,5.7164,174.9,174.86,3.3]
[1754622202437,8.8664,174.9,174.86,3.3]
[1754622202636,3.15,174.9,174.86,3.3]
[1754622202838,5.7167,174.89,174.86,9.0173]
[1754622203138,3.15,174.89,174.88,3.3]
[1754622203738,8.8665,174.89,174.88,3.3]
[1754622205038,3.15,174.91,174.88,3.3]
[1754622205337,3.15,174.9,174.89,3.3]
[1754622205739,8.8663,174.9,174.89,3.3]
[1754622206937,3.15,174.9,174.89,3.3]
[1754622207439,8.8661,174.9,174.89,3.3]
[1754622209041,3.15,174.9,174.89,3.3]
[1754622209229,3.15,174.92,174.89,3.3]
[1754622209940,8.8657,174.92,174.89,3.3]
[1754622210133,3.22619388,174.94,174.9,3.3]
[1754622210438,3.15,174.93,174.9,3.3]
[1754622210638,3.15,174.93,174.91,3.3]
[1754622211036,3.15,174.93,174.92,3.3]
[1754622212441,8.8651,174.93,174.92,3.3]
[1754622213041,5.7151,174.93,174.9,3.16]
[1754622213244,3.12,174.91,174.9,3.16]
[1754622213838,3.12,174.91,174.88,3.16]
[1754622214143,3.12,174.91,174.89,3.16]
[1754622214343,5.7163,174.9,174.86,8.8772]
[1754622214542,3.12,174.89,174.88,3.16]
[1754622215238,5.7176,174.86,174.83,3.16]
[1754622215441,6.34619388,174.85,174.79,3.16]
[1754622215942,3.22619388,174.85,174.82,3.16]
[1754622216341,3.22619388,174.87,174.82,3.16]
[1754622216947,12.06349388,174.87,174.83,5.7182]
[1754622217140,12.06349388,174.87,174.84,3.16]
[1754622217441,8.8366,174.89,174.86,3.16]
[1754622217644,6.34619388,174.91,174.86,3.16]
[1754622217844,3.12,174.9,174.86,3.16]
[1754622218044,12.06219388,174.91,174.88,3.16]
[1754622218846,5.7162,174.9,174.86,5.7544683]
[1754622219146,3.12,174.96,174.87,3.16]
[1754622219344,5.7154,174.93,174.87,3.16]
[1754622219950,8.8354,174.93,174.89,3.16]
[1754622220150,8.8355,174.92,174.89,3.16]
[1754622220546,8.8355,174.92,174.9,3.16]
[1754622220750,8.8355,174.92,174.91,3.16]
[1754622221141,8.8355,174.92,174.88,0.04053793]
[1754622221142,8.8358,174.91,174.9,3.16]
[1754622221346,3.12,174.91,174.9,3.16]
[1754622222846,3.12,174.93,174.9,3.16]
[1754622223648,3.12,174.92,174.91,3.16]
[1754622224155,8.8355,174.92,174.91,3.16]
[1754622224354,3.22619388,174.92,174.88,0.04053793]
[1754622224552,3.12,174.91,174.89,3.16]
[1754622224752,3.12,174.9,174.89,3.16]
[1754622226550,5.716,174.91,174.88,0.04053793]
[1754622226751,8.836,174.91,174.9,3.16]
[1754622227653,5.716,174.91,174.88,5.75723793]
[1754622227859,3.12,174.9,174.89,3.16]
[1754622228156,5.716,174.91,174.9,3.16]
[1754622228358,5.7156,174.92,174.88,0.04053793]
[1754622228657,8.8356,174.92,174.91,3.16]
[1754622229757,8.8356,174.92,174.88,0.04053793]
[1754622229758,3.12,174.93,174.9,5.7161]
[1754622229953,3.12,174.95,174.93,3.16]
[1754622230154,3.12,174.95,174.94,3.16]
[1754622230555,3.12,174.96,174.87,3.22619388]
[1754622230761,3.12,174.94,174.88,3.16]
[1754622231064,3.12,174.94,174.9,5.7161]
[1754622231358,3.12,174.94,174.91,3.16]
[1754622231554,3.12,174.94,174.92,3.16]
[1754622231956,3.12,174.95,174.92,3.16]
[1754622232261,3.12,174.95,174.93,3.16]
[1754622232560,3.12,174.94,174.93,3.16]
[1754622236363,113.60019388,174.97,174.93,3.16]
[1754622236563,3.12,174.96,174.93,3.16]
[1754622236767,3.12,174.95,174.94,3.16]
[1754622239873,3.12,175.03,174.94,3.22619388]
[1754622240169,3.22619388,175.15,175.02,3.16]
[1754622240374,3.22619388,175.17,175.09,3.22619388]
[1754622240567,0.99414369,175.16,175.09,3.22619388]
[1754622240768,3.12,175.12,175.11,3.16]
[1754622240968,3.12,175.12,175.09,3.22619388]
[1754622241272,3.12,175.12,175.11,3.16]
[1754622241774,0.99414369,175.16,175.09,3.22619388]
[1754622241775,3.13,175.15,175.09,3.22619388]
[1754622241974,3.13,175.15,175.09,6.29619388]
[1754622242273,5.7082,175.15,175.09,6.29619388]
[1754622242470,3.22619388,175.11,175.04,3.22619388]
[1754622242768,8.93709388,175.07,175.02,3.07]
[1754622242976,3.13,175.06,175.02,3.07]
[1754622243374,3.13,175.06,175.03,0.03613376]
[1754622244266,3.22619388,175.05,175.03,0.03613376]
[1754622244471,3.13,175.04,175.03,0.03613376]
[1754622244977,3.13,175.04,175.03,3.10613376]
[1754622248278,3.13,175.04,175.03,0.03613376]
[1754622250482,8.39697556,175.04,175.03,0.03613376]
[1754622254382,14.10857556,175.04,175.03,0.03613376]
[1754622255286,8.39697556,175.04,175.03,0.03613376]
[1754622255985,14.10857556,175.04,175.03,0.03613376]
[1754622256677,3.13,175.0,174.99,3.07]
[1754622256873,3.13,174.99,174.92,3.07]
[1754622257073,0.03682769,175.05,174.94,3.07]
[1754622257074,3.13,174.97,174.94,3.07]
[1754622257884,5.26697556,174.98,174.94,3.07]
[1754622258085,0.03990512,174.97,174.94,3.07]
[1754622258390,0.03990512,174.97,174.95,5.7145]
[1754622258592,0.03990512,174.97,174.96,3.07]
[1754622261891,3.16990512,174.97,174.96,3.07]
[1754622263787,0.03990512,174.97,174.96,3.07]
[1754622264289,0.03990512,174.97,174.96,8.7842]
[1754622265389,3.23303264,175.04,174.96,3.07]
[1754622265594,3.23303264,175.04,174.98,3.07]
[1754622265790,8.94473264,175.04,174.98,8.7834]
[1754622266096,3.13,175.02,174.99,3.07]
[1754622266688,3.13,175.02,174.99,3.10729608]
[1754622267393,3.13,175.02,174.99,8.82059608]
[1754622267592,3.13,175.02,175.0,3.07]
[1754622267793,3.13,175.02,175.01,3.07]
[1754622269496,3.13,175.04,175.01,3.07]
[1754622270299,3.13,175.03,175.02,3.07]
[1754622271796,3.23303264,175.06,175.02,3.07]
[1754622271999,3.09,175.05,175.0,3.22]
[1754622272600,3.09,175.04,175.0,3.22]
[1754622273501,3.09,175.04,175.0,3.25781135]
[1754622273703,3.09,175.04,175.0,8.97071135]
[1754622273900,3.09,175.04,175.01,3.22]
[1754622274404,3.09,175.03,175.02,3.22]
[1754622276195,3.09,175.01,175.0,0.03781135]
[1754622276504,6.32303264,175.01,175.0,0.03781135]
[1754622277302,3.09,175.01,175.0,0.03781135]
[1754622277503,3.09,175.01,175.0,3.25781135]
[1754622277705,3.09,175.01,175.0,0.03781135]
[1754622278503,8.8026,175.01,175.0,0.03781135]
[1754622281202,12.03563264,175.01,175.0,0.03781135]
[1754622282002,3.09,175.0,174.93,3.22]
[1754622282202,3.23303264,174.95,174.93,3.22]
[1754622282407,6.32303264,174.97,174.94,3.22]
[1754622282608,3.23303264,174.97,174.94,3.22]
[1754622282809,3.09,174.96,174.94,3.22]
[1754622283510,3.09,174.96,174.95,3.22]
[1754622286413,3.23303264,174.96,174.95,3.22]
[1754622288316,3.09,174.95,174.88,3.22]
[1754622288519,3.23303264,174.93,174.88,3.22]
[1754622288708,6.32303264,174.93,174.88,3.22]
[1754622289021,3.09,174.9,174.88,3.22]
[1754622290119,6.32303264,174.89,174.88,3.22]
[1754622291319,6.32303264,174.89,174.87,150.06530827]
[1754622291514,3.09,174.88,174.87,150.06530827]
[1754622292314,3.09,174.88,174.86,3.22]
[1754622292515,3.09,174.9,174.8,108.07303264]
[1754622292711,3.23303264,174.89,174.8,108.07303264]
[1754622293118,3.23303264,174.89,174.82,3.23303264]
[1754622293318,3.09,174.94,174.84,3.23303264]
[1754622293523,3.23303264,174.93,174.85,3.22]
[1754622293724,6.32303264,174.93,174.85,3.22]
[1754622293920,0.03631771,174.91,174.88,5.7169]
[1754622294122,0.03631771,174.91,174.89,3.22]
[1754622295219,0.03631771,174.91,174.9,5.7163]
[1754622295420,0.03631771,174.91,174.9,8.9363]
[1754622296420,3.09,174.98,174.91,3.22]
[1754622296616,3.09,174.98,174.93,3.23303264]
[1754622296822,3.09,174.98,174.94,3.22]
[1754622297215,3.09,174.98,174.96,3.22]
[1754622297420,3.09,175.04,174.96,3.22]
[1754622297619,3.23303264,175.02,174.96,3.22]
[1754622297823,3.09,175.0,174.96,3.22]
[1754622298222,3.23303264,175.02,174.98,3.22]
[1754622298430,6.32303264,175.02,174.98,3.22]
[1754622298617,3.09,175.01,174.98,3.22]
[1754622299321,3.09,175.01,174.96,3.22]
[1754622299518,3.09,175.0,174.97,5.7138]
[1754622299727,3.09,175.0,174.99,3.22]
[1754622300428,3.23303264,175.02,174.98,0.03696676]
[1754622300627,3.09,175.01,174.99,3.22]
[1754622300823,3.23303264,175.02,174.98,0.03696676]
[1754622301429,3.09,175.01,174.98,0.03696676]
[1754622301735,8.94613264,175.0,174.98,0.03696676]
[1754622302023,3.22,174.99,174.98,0.03696676]
[1754622303230,8.9334,174.99,174.98,0.03696676]
[1754622303424,3.22,174.99,174.98,0.03696676]
[1754622303619,3.22,174.99,174.98,3.20696676]
[1754622304430,3.23303264,175.0,174.98,0.03696676]
[1754622304626,3.22,175.02,174.99,3.17]
[1754622305020,3.22,175.03,174.99,3.17]
[1754622305330,5.7118,175.04,174.99,3.17]
[1754622305529,3.22,175.02,175.0,3.17]
[1754622305730,3.22,175.01,175.0,3.17]
[1754622306031,5.7119,175.04,174.98,5.75066676]
[1754622306333,3.22,175.04,175.01,3.17]
[1754622306625,5.26666535,175.06,175.02,3.17]
[1754622307132,3.22,175.05,175.01,3.17]
[1754622308229,3.22,175.04,174.99,5.7133]
[1754622308426,5.26666535,175.06,175.01,3.17]
[1754622308626,3.22,175.02,175.01,3.17]
[1754622310835,3.22,175.04,175.01,3.17]
[1754622311433,5.7115,175.05,175.01,3.17]
[1754622311732,8.9315,175.05,175.01,3.17]
[1754622311939,8.9315,175.05,175.01,3.20701198]
[1754622312236,3.22,175.03,175.02,3.17]
[1754622312437,3.22,175.05,175.02,3.17]
[1754622312638,3.22,175.04,175.03,3.17]
[1754622312838,3.22,175.06,175.02,3.17]
[1754622313238,5.26666535,175.05,175.01,0.03701198]
[1754622313430,3.22,175.04,175.01,3.20701198]
[1754622313937,3.22,175.03,175.02,3.17]
[1754622314240,8.48666535,175.05,175.02,3.17]
[1754622314441,3.22,175.03,175.02,3.17]
[1754622317342,5.26666535,175.05,175.02,3.17]
[1754622317537,8.48666535,175.05,175.02,3.17]
[1754622317842,3.22,175.04,175.03,3.17]
[1754622318144,3.22,175.05,175.02,5.7124]
[1754622318332,3.22,175.06,175.03,3.17]
[1754622318638,3.22,175.06,175.03,8.8818]
[1754622318841,3.22,175.07,175.04,3.17]
[1754622319244,5.26666535,175.09,175.01,0.03701198]
[1754622319438,104.72,175.1,175.01,0.03701198]
[1754622319743,3.22,175.09,175.02,3.17]
[1754622320042,3.22,175.08,175.05,3.17]
[1754622320241,3.22,175.07,175.06,3.17]
[1754622321941,3.22,175.07,175.05,0.03753216]
[1754622322148,3.22,175.08,175.05,3.20753216]
[1754622322446,5.26666535,175.09,175.05,0.03753216]
[1754622322647,3.22,175.06,175.05,0.03753216]
[1754622323049,8.9311,175.06,175.05,0.03753216]
[1754622324149,5.712,175.04,174.97,151.00527812]
[1754622324346,3.22,175.02,175.01,3.17]
[1754622324547,3.22,175.03,175.02,3.17]
[1754622325244,3.22,175.02,175.0,3.17]
[1754622325449,3.22,175.02,175.01,3.17]
[1754622326949,5.7122,175.03,174.98,5.7136]
[1754622327152,3.22,175.02,175.0,3.17]
[1754622327350,5.7122,175.03,175.0,3.17]
[1754622327546,3.22,175.01,175.0,3.17]
[1754622328053,3.22,175.01,174.98,3.17]
[1754622328655,3.22,175.0,174.99,3.17]
[1754622331654,3.22,175.0,174.97,154.06527812]
[1754622331855,3.27,174.98,174.9,60.59017346]
[1754622332050,8.94692396,174.99,174.96,3.06]
[1754622332252,3.27,174.97,174.96,3.06]
[1754622333154,0.0394868,174.98,174.96,8.7744]
[1754622334053,0.0394868,174.98,174.96,5.7144]
[1754622334253,0.0394868,174.98,174.97,3.06]
[1754622335755,3.3094868,174.98,174.97,3.06]
[1754622336452,3.3094868,174.98,174.95,5.7147]
[1754622336652,3.27,174.97,174.91,3.06]
[1754622336954,5.7533868,174.98,174.94,5.715]
[1754622337154,3.27,174.96,174.95,3.06]
[1754622337660,0.0394868,174.98,174.94,3.06]
[1754622338355,3.3094868,174.98,174.94,3.06]
[1754622338952,3.3094868,174.98,174.94,8.7751]
[1754622339160,3.27,174.97,174.91,3.06]
[1754622339358,3.27,174.95,174.91,3.06]
[1754622339559,3.27,174.96,174.93,3.06]
[1754622339857,5.7143,174.97,174.93,3.06]
[1754622340059,3.27,174.95,174.93,3.06]
[1754622340253,0.03728059,174.97,174.93,3.06]
[1754622340558,0.03728059,174.97,174.93,5.7152]
[1754622340757,3.27,174.96,174.94,3.06]
[1754622340958,3.27,174.96,174.95,3.06]
[1754622343161,0.03728059,174.97,174.95,3.06]
[1754622344165,3.30728059,174.97,174.96,3.06]
[1754622345262,0.03728059,174.97,174.96,3.06]
[1754622345765,0.03728059,174.97,174.96,8.7745]
[1754622346558,3.23312396,175.02,174.99,5.7134]
[1754622346758,6.50312396,175.02,174.99,5.7134]
[1754622346957,3.23312396,175.0,174.94,3.06]
[1754622347161,6.50312396,175.0,174.94,3.06]
[1754622347364,3.23312396,175.0,174.98,5.7136]
[1754622347564,3.23312396,175.02,174.94,3.06]
[1754622348566,6.50312396,175.02,174.99,5.7132]
[1754622348766,6.50312396,175.02,175.0,3.06]
[1754622348967,3.27,175.01,174.99,0.0375491]
[1754622349168,6.50312396,175.0,174.99,0.0375491]
[1754622349366,6.50312396,175.0,174.97,5.7141]
[1754622349570,3.23312396,175.0,174.97,5.7141]
[1754622349770,3.23312396,175.02,174.92,3.23312396]
[1754622349965,3.27,175.01,174.97,0.03714431]
[1754622350268,3.27,175.01,174.98,3.06]
[1754622351168,3.27,175.01,174.99,5.7135]
[1754622351567,3.27,175.01,175.0,3.06]
[1754622351771,12.21572396,175.02,175.0,3.06]
[1754622351970,12.21572396,175.02,175.01,3.06]
[1754622352868,12.21572396,175.02,174.99,3.06]
[1754622353070,3.27,175.01,175.0,3.06]
[1754622353468,5.7129,175.01,174.98,5.7138]
[1754622353670,3.27,175.0,174.98,5.7138]
[1754622354067,3.27,174.99,174.98,8.7738]
[1754622354262,3.27,174.99,174.97,0.03714431]
[1754622354465,3.27,174.97,174.84,3.06]
[1754622354666,3.23312396,174.88,174.84,3.06]
[1754622354861,3.23312396,174.88,174.87,8.7773]
[1754622355066,3.23312396,174.88,174.87,3.06]
[1754622356371,0.03661015,174.89,174.81,3.23312396]
[1754622356563,0.03661015,174.89,174.88,3.06]
[1754622356764,0.03661015,174.89,174.88,8.7772]
[1754622361274,3.30661015,174.89,174.88,3.06]
[1754622363279,3.30661015,174.89,174.87,3.26]
[1754622363774,3.30661015,174.89,174.86,8.9778]
[1754622363972,3.15,174.88,174.87,8.9775]
[1754622366877,3.15,174.88,174.83,5.7188]
[1754622367082,3.15,174.88,174.82,3.26]
[1754622367581,5.75361015,174.89,174.86,5.7176]
[1754622367783,3.15,174.87,174.86,5.7176]
[1754622368382,3.15,174.87,174.86,8.9776]
[1754622369379,3.18661015,174.89,174.88,8.9772]
[1754622369578,0.03661015,174.89,174.88,8.9772]
[1754622371479,3.23312396,174.94,174.88,3.26]
[1754622371683,3.15,174.93,174.88,3.26]
[1754622372186,3.23312396,174.94,174.88,3.26]
[1754622372385,3.15,174.92,174.88,3.26]
[1754622372685,6.38312396,174.94,174.88,3.26]
[1754622373482,6.38312396,174.94,174.92,5.7156]
[1754622373688,3.15,174.93,174.92,8.9756]
[1754622380895,3.15,174.95,174.94,3.26]
[1754622381193,3.15,174.95,174.93,3.26]
[1754622381800,3.15,174.94,174.93,3.26]
[1754622382090,5.7143,174.97,174.94,5.715]
[1754622382296,3.15,174.96,174.95,3.26]
[1754622383192,8.8646,174.96,174.95,3.26]
[1754622383403,3.15,174.97,174.96,3.26]
[1754622384097,3.15,174.97,174.96,8.9746]
[1754622384694,8.8637,174.99,174.96,5.7146]
[1754622384994,3.15,174.99,174.97,5.7142]
[1754622385194,3.15,174.99,174.98,3.26]
[1754622386695,8.8636,174.99,174.96,5.7145]
[1754622386995,3.15,174.98,174.97,3.26]
[1754622387298,3.15,174.98,174.96,5.7145]
[1754622387498,3.15,174.98,174.96,8.9745]
[1754622388397,5.7136,174.99,174.96,8.9745]
[1754622388598,3.15,174.97,174.96,8.9745]
[1754622391695,3.05,174.98,174.97,8.9542]
[1754622392594,3.05,174.99,174.95,0.03659788]
[1754622392802,3.23312396,174.96,174.95,0.03659788]
[1754622392996,6.28312396,174.96,174.95,0.03659788]
[1754622394004,11.99772396,174.96,174.95,0.03659788]
[1754622394301,8.7646,174.96,174.95,3.27659788]
[1754622394902,3.23312396,175.0,174.95,3.27659788]
[1754622395096,3.05,174.99,174.95,3.27659788]
[1754622395496,3.23312396,175.0,174.95,3.27659788]
[1754622395803,3.23312396,174.98,174.95,0.03659788]
[1754622396000,3.05,174.95,174.93,8.9554]
[1754622396598,5.715,174.95,174.93,3.24]
[1754622396892,3.05,174.94,174.93,3.24]
[1754622397396,3.05,174.94,174.93,8.9556]
[1754622399204,3.05,174.95,174.94,5.7152]
[1754622399400,3.23312396,175.0,174.92,0.03621361]
[1754622399608,3.05,174.99,174.94,3.24]
[1754622399906,3.05,174.97,174.96,8.9545]
[1754622401804,8.94652396,175.0,174.97,5.714]
[1754622402001,3.05,174.99,174.96,3.24]
[1754622402198,3.05,175.01,174.96,3.24]
[1754622402401,3.05,175.0,174.96,3.24]
[1754622402810,5.713,175.01,174.96,3.24]
[1754622403005,3.05,175.0,174.98,5.7137]
[1754622403202,5.713,175.01,174.98,8.9537]
[1754622403406,3.05,174.99,174.98,8.9537]
[1754622408007,8.763,175.01,174.99,5.7136]
[1754622408214,3.05,175.0,174.99,3.24]
[1754622408413,8.7633,175.0,174.97,3.28401984]
[1754622408613,3.05,174.99,174.98,3.24]
[1754622408913,8.763,175.01,174.98,3.24]
[1754622409114,3.05,175.0,174.99,3.24]
[1754622409515,3.05,175.0,174.99,8.9536]
[1754622410316,3.23312396,175.04,175.02,3.24]
[1754622410516,3.05,175.05,174.98,3.24]
[1754622410917,3.05,175.04,175.02,5.7126]
[1754622411116,3.05,175.03,175.02,8.9526]
[1754622411413,107.87312396,175.06,175.02,8.9526]
[1754622411618,3.05,175.05,175.04,3.24]
[1754622411816,3.05,175.05,175.02,8.9526]
[1754622412819,5.7121,175.04,175.02,3.24]
[1754622413120,3.05,175.03,175.02,3.24]
[1754622413718,3.05,175.05,175.0,0.03846854]
[1754622413915,3.23312396,175.07,175.04,3.24]
[1754622414117,494.4902,175.1,175.07,3.24]
[1754622414318,497.72332396,175.1,175.07,3.24]
[1754622414514,497.72332396,175.1,175.07,8.9508]
[1754622414720,3.05,175.09,175.07,8.9508]
[1754622415020,3.05,175.08,175.07,3.27800489]
[1754622415922,8.7607,175.08,175.07,3.27800489]
[1754622416321,8.7607,175.08,175.07,0.03800489]
[1754622420315,5.7112,175.07,175.05,3.24]
[1754622420821,5.7112,175.07,175.04,5.7119]
[1754622421022,3.05,175.06,175.05,3.24]
[1754622421223,5.7112,175.07,175.05,3.24]
[1754622421419,0.03840413,175.09,175.03,3.23312396]
[1754622421625,0.03840413,175.09,175.06,3.0]
[1754622421926,3.24,175.08,175.05,5.7115]
[1754622422119,3.24,175.1,175.05,5.7115]
[1754622422422,5.75128113,175.09,175.07,3.0]
[1754622422624,0.04078113,175.09,175.04,3.0]
[1754622423222,3.24,175.08,175.04,3.0]
[1754622423419,0.04078113,175.09,175.04,3.0]
[1754622423818,0.04078113,175.09,175.05,3.23312396]
[1754622424021,0.04078113,175.09,175.06,3.0]
[1754622424525,0.04078113,175.09,175.08,5.7107]
[1754622424720,3.23312396,175.18,175.08,3.0]
[1754622424926,3.24,175.18,175.12,3.0]
[1754622425121,8.9473,175.19,175.16,3.0]
[1754622425618,3.24,175.19,175.17,5.7075]
[1754622425823,3.24,175.19,175.18,3.0]
[1754622426019,104.58,175.2,175.14,0.04145738]
[1754622426223,3.24,175.18,175.17,3.0]
[1754622426721,3.24,175.17,175.16,3.0]
[1754622428018,3.24,175.16,175.14,0.04145738]
[1754622428223,6.47312396,175.19,175.14,3.04145738]
[1754622428421,3.24,175.17,175.14,3.04145738]
[1754622428721,3.24,175.17,175.15,5.7083]
[1754622428930,3.24,175.16,175.15,8.7083]
[1754622429331,3.24,175.16,175.14,0.04145738]
[1754622430028,3.24,175.16,175.14,3.04145738]
[1754622430223,3.24,175.16,175.15,3.0]
[1754622430622,3.24,175.15,175.14,3.04145738]
[1754622430925,6.47312396,175.15,175.14,0.04145738]
[1754622431126,12.18152396,175.15,175.14,0.04145738]
[1754622431525,8.94152396,175.15,175.14,0.04145738]
[1754622431723,3.24,175.15,175.14,3.04145738]
[1754622433228,8.9484,175.15,175.14,3.04145738]